fUST/lending_fUST_20240816
["ID","MTS","AMOUNT","RATE_DAILY","PERIOD"]
[335082234,1723811440786,-3000.0,0.0002999,2]
[335082235,1723811440796,-150.112233,0.0003,14]
[335082236,1723811440806,-3000.0,0.0003,2]
[335082237,1723811440816,-332.0,0.0003,30]
[335082238,1723811440825,-1000.0,0.0003,8]
[335082239,1723811440836,-3000.0,0.0003001,2]
[335082240,1723811440846,-3000.0,0.0003002,2]
[335082241,1723811440855,-3000.0,0.0003003,2]
[335082242,1723811440865,-3000.0,0.0003004,2]
[335082243,1723811440875,-3000.0,0.0003005,2]
[335082244,1723811440885,-3000.0,0.0003006,2]
[335082245,1723811440894,-3000.0,0.0003007,2]
[335082246,1723811440904,-3000.0,0.0003008,2]
[335082247,1723811440913,-3000.0,0.0003009,2]
[335082248,1723811440922,-3000.0,0.000301,2]
[335082249,1723811440932,-3000.0,0.0003011,2]
[335082250,1723811440942,-3000.0,0.0003012,2]
[335082251,1723811440952,-3000.0,0.0003013,3]
[335082252,1723811440965,-3000.0,0.0003014,3]
[335082253,1723811440978,-3000.0,0.0003015,3]
[335082254,1723811440989,-3000.0,0.0003016,3]
[335082255,1723811440998,-600.0,0.00030165,7]
[335082256,1723811441008,-3000.0,0.0003017,3]
[335082257,1723811441018,-3000.0,0.0003018,3]
[335082258,1723811441028,-3000.0,0.0003019,3]
[335082259,1723811441037,-3000.0,0.000302,3]
[335082260,1723811441047,-3000.0,0.0003021,3]
[335082261,1723811441057,-2700.89231622,0.0003022,3]
[335082276,1723811442039,-400.0,0.00014342,2]
[335082278,1723811442051,-151.0,0.00027496,7]
[335082280,1723811442061,-299.10768378,0.0003022,3]
[335082282,1723811442071,-3000.0,0.0003023,3]
[335082284,1723811442081,-3000.0,0.0003024,3]
[335082287,1723811442092,-3000.0,0.0003025,3]
[335082289,1723811442104,-3000.0,0.0003026,3]
[335082290,1723811442113,-3000.0,0.0003027,3]
[335082293,1723811442123,-3000.0,0.0003028,3]
[335082295,1723811442133,-3000.0,0.0003029,3]
[335082297,1723811442142,-3000.0,0.000303,3]
[335082299,1723811442152,-3000.0,0.0003031,3]
[335082301,1723811442161,-3000.0,0.0003032,3]
[335082303,1723811442171,-3000.0,0.0003033,3]
[335082305,1723811442180,-3000.0,0.0003034,3]
[335082307,1723811442190,-3000.0,0.0003035,3]
[335082309,1723811442200,-3000.0,0.0003036,3]
[335082311,1723811442210,-4342.457628,0.0003037,3]
[335082313,1723811442225,-1900.0,0.00030376,7]
[335082315,1723811442235,-1100.0,0.00030418,7]
[335082317,1723811442244,-600.0,0.00030495,7]
[335082319,1723811442254,-1000.0,0.000305,8]
[335082320,1723811442263,-600.0,0.0003054,7]
[335082322,1723811442272,-1100.0,0.00030637,7]
[335082324,1723811442282,-44129.00236473,0.000308,14]
[335082327,1723811442303,-637.33592998,0.000308,14]
[335082332,1723811442377,-115.75188901,0.000308,14]
[335082340,1723811443296,-1680.84432709,0.000308,14]
[335082371,1723811446382,-151.0,0.00027496,7]
[335082372,1723811446392,-302.662073,0.000275,7]
[335082373,1723811446404,-302.662073,0.00029828,7]
[335082374,1723811446414,-4755.070369,0.000308,14]
[335082375,1723811446428,-1378.92675256,0.000308,14]
[335082376,1723811446454,-961.81211323,0.000308,14]
[335082377,1723811460512,273.37336231,9.9e-05,2]
[335082378,1723811598779,263.34760791,9.9e-05,2]
[335082379,1723811603486,2111.14414603,9.9e-05,2]
[335082380,1723811614097,283.13416877,9.9e-05,2]
[335082381,1723811624083,218.66051313,9.9e-05,2]
[335082382,1723811914907,156.81279309,0.00010081,2]
[335082383,1723811997610,240.49279008,0.00010081,2]
[335082384,1723812011034,1670.92226544,0.00010081,2]
[335082385,1723812068595,2572.13637487,0.00010081,2]
[335082391,1723812334702,743.11853603,0.00010081,2]
[335082392,1723812335278,-300.0,0.00010599,2]
[335082393,1723812335301,-300.0,0.00010599,2]
[335082394,1723812335325,-24900.0,0.000106,2]
[335082395,1723812335347,-899.2851663,0.00010739,2]
[335082396,1723812335368,-17937.91920429,0.00011409,2]
[335082397,1723812335392,-166.6666779,0.00011483,2]
[335082398,1723812335414,-292.0,0.00011652,2]
[335082399,1723812335440,-420.0,0.00011659,2]
[335082400,1723812335461,-154.76012181,0.00011731,2]
[335082401,1723812335482,-156.81279309,0.00011731,2]
[335082402,1723812335505,-156.81279309,0.00011842,2]
[335082403,1723812335527,-1500.0,0.00011842,2]
[335082404,1723812335547,-2617.67290406,0.00011842,2]
[335082405,1723812335568,-2139.78321751,0.00011987,2]
[335082406,1723812335595,-281.09871545,0.00011999,2]
[335082407,1723812335618,-779.85217684,0.00012356,2]
[335082408,1723812335641,-779.85217684,0.00012356,2]
[335082409,1723812335663,-422.17784127,0.00012356,2]
[335082410,1723812335689,-727.98389282,0.00012356,2]
[335082411,1723812335712,-292.98093876,0.00012689,2]
[335082412,1723812335736,-587.0,0.00012825,2]
[335082413,1723812335759,-724.39999998,0.00013,2]
[335082414,1723812335782,-1127.2274451,0.00013243,2]
[335082415,1723812335806,-157.13401873,0.00013698,2]
[335082416,1723812335829,-186.270078,0.00013699,2]
[335082417,1723812335853,-3000.0,0.00013699,2]
[335082418,1723812335881,-500.0,0.00013699,2]
[335082419,1723812335905,-500.0,0.00013699,2]
[335082420,1723812335938,-500.0,0.00013699,2]
[335082421,1723812335963,-500.0,0.00013699,2]
[335082422,1723812335987,-357.81952464,0.00013699,2]
[335082423,1723812336010,-500.0,0.00013699,2]
[335082424,1723812336032,-154.76012181,0.00014,2]
[335082425,1723812336055,-823.0,0.00014107,2]
[335082426,1723812336078,-165.823788,0.00014247,2]
[335082427,1723812336100,-5242.47821719,0.00015,2]
[335082428,1723812336121,-782.1935295,0.00015,2]
[335082429,1723812336143,-952.97302419,0.00015,2]
[335082430,1723812336164,-1110.39279741,0.00015,2]
[335082431,1723812336189,-865.0,0.00015518,2]
[335082432,1723812336210,-939.49733364,0.00016,2]
[335082433,1723812336233,-3000.0,0.00016,2]
[335082434,1723812336259,-3000.0,0.0001601,2]
[335082435,1723812336281,-3000.0,0.0001602,2]
[335082436,1723812336304,-3000.0,0.0001603,2]
[335082437,1723812336328,-2345.3297691,0.0001604,2]
[335082438,1723812340218,-165.10072,0.00014247,2]
[335082439,1723812340241,-654.6702309,0.0001604,2]
[335082440,1723812340269,-3000.0,0.0001605,2]
[335082441,1723812340292,-3000.0,0.0001606,2]
[335082442,1723812340314,-3000.0,0.0001607,2]
[335082443,1723812340340,-3000.0,0.0001608,2]
[335082444,1723812340363,-3000.0,0.0001609,2]
[335082445,1723812340385,-3000.0,0.000161,2]
[335082446,1723812340407,-3000.0,0.0001611,2]
[335082447,1723812340436,-3000.0,0.0001612,2]
[335082448,1723812340458,-3000.0,0.0001613,2]
[335082449,1723812340479,-3000.0,0.0001614,2]
[335082450,1723812340502,-3000.0,0.0001615,2]
[335082451,1723812340523,-3000.0,0.0001616,2]
[335082452,1723812340545,-251.8725953,0.00016169,2]
[335082453,1723812340569,-176.3108167,0.00016169,2]
[335082454,1723812340591,-3000.0,0.0001617,2]
[335082455,1723812340614,-3000.0,0.0001618,2]
[335082456,1723812340635,-3000.0,0.0001619,2]
[335082457,1723812340656,-3000.0,0.000162,2]
[335082458,1723812340682,-3000.0,0.0001621,2]
[335082459,1723812340708,-3000.0,0.0001622,2]
[335082460,1723812340731,-3000.0,0.0001623,2]
[335082461,1723812340752,-3000.0,0.0001624,2]
[335082462,1723812340911,-3000.0,0.0001625,2]
[335082463,1723812340936,-3000.0,0.0001626,2]
[335082464,1723812340958,-3000.0,0.0001627,2]
[335082465,1723812340979,-3000.0,0.0001628,2]
[335082466,1723812341001,-3000.0,0.0001629,2]
[335082467,1723812341023,-3000.0,0.000163,2]
[335082468,1723812341044,-3000.0,0.0001631,2]
[335082469,1723812341066,-3000.0,0.0001632,2]
[335082470,1723812341089,-3000.0,0.0001633,2]
[335082471,1723812341112,-3000.0,0.0001634,2]
[335082472,1723812341134,-3000.0,0.0001635,2]
[335082473,1723812341156,-3000.0,0.0001636,2]
[335082474,1723812341182,-3000.0,0.0001637,2]
[335082475,1723812341204,-3000.0,0.0001638,2]
[335082476,1723812341225,-3000.0,0.0001639,2]
[335082477,1723812341249,-3000.0,0.000164,2]
[335082478,1723812341276,-3611.108361,0.0001641,2]
[335082479,1723812341297,-500.0,0.00016438,2]
[335082480,1723812341317,-500.0,0.00016438,2]
[335082481,1723812341340,-500.0,0.00016438,2]
[335082482,1723812341361,-400.0,0.00016438,2]
[335082483,1723812341382,-500.0,0.00016438,2]
[335082484,1723812341402,-500.0,0.00016438,2]
[335082485,1723812341431,-500.0,0.00016438,2]
[335082486,1723812341460,-500.0,0.00016438,2]
[335082487,1723812341484,-500.0,0.00016438,2]
[335082488,1723812341507,-500.0,0.00016438,2]
[335082489,1723812341529,-500.0,0.00016438,2]
[335082490,1723812341553,-154.76012181,0.00017,2]
[335082491,1723812341575,-1045.12437246,0.00018,2]
[335082492,1723812341597,-251.0,0.00019178,2]
[335082493,1723812341621,-78256.4183814,0.0001999,2]
[335082494,1723812341643,-156.55024698,0.0002,2]
[335082495,1723812341667,-534.41325645,0.0002,2]
[335082497,1723812444284,-1396.00306611,0.00014519,2]
[335082498,1723812444308,-154.76012181,0.00014519,2]
[335082499,1723812444331,-2609.75339327,0.000199,2]
[335082500,1723812444352,-600.0,0.00019999,2]
[335082501,1723812444375,-317.53550274,0.00019999,2]
[335082502,1723812444396,-9050.84962359,0.0002,2]
[335082503,1723812444417,-4154.49075148,0.0002,2]
[335082593,1723812638887,-156.81279309,0.00013792,2]
[335082594,1723812638897,-154.76012181,0.00014243,2]
[335082595,1723812638907,-186.2700791,0.00019261,2]
[335082596,1723812638916,-251.0,0.00019748,2]
[335082597,1723812638925,-764.42452881,0.0002,2]
[335082598,1723812638935,-1260.16836963,0.0002,2]
[335082599,1723812638944,-5324.0953844,0.0002,2]
[335082600,1723812638954,-12900.0,0.0002,2]
[335082601,1723812638965,-178.51995397,0.0002,2]
[335082602,1723812638974,-381.79479471,0.0002,2]
[335082603,1723812638983,-258.55298155,0.0002,2]
[335082604,1723812638992,-156.57509394,0.0002,2]
[335082605,1723812639002,-100.06246599,0.0002,2]
[335082606,1723812639022,-14579.03734397,0.0002,2]
[335082607,1723812639032,-2605.98976067,0.000203,2]
[335082608,1723812639042,-1375.68208424,0.00020996,2]
[335082609,1723812639051,-2283.53421912,0.00021818,2]
[335082610,1723812639060,-74343.5974623,0.00021898,3]
[335082611,1723812639070,-23177.15654,0.00021918,2]
[335082612,1723812639079,-882.51902373,0.0002217,2]
[335082613,1723812639089,-165.10072,0.00023014,2]
[335082614,1723812639098,-952.97302419,0.00024203,2]
[335082615,1723812639108,-782.12449386,0.00024213,2]
[335082616,1723812639117,-2192.2379403,0.00024215,2]
[335082617,1723812639127,-1110.39279741,0.00024215,2]
[335082618,1723812639136,-600.0,0.00025,2]
[335082619,1723812639145,-1900.0,0.00025054,2]
[335082620,1723812639154,-5000.0,0.00025329,2]
[335082621,1723812639163,-1100.0,0.0002545,2]
[335082622,1723812639173,-1100.0,0.00025655,2]
[335082623,1723812639182,-600.0,0.00025807,2]
[335082624,1723812639191,-74343.5974623,0.00025924,3]
[335082625,1723812639201,-600.0,0.00025934,2]
[335082626,1723812639210,-1900.0,0.00025953,2]
[335082627,1723812639221,-1900.0,0.00026236,2]
[335082628,1723812639231,-475.93383457,0.00026323,2]
[335082629,1723812639240,-2283.53421907,0.00026373,2]
[335082630,1723812639249,-1900.0,0.00026428,2]
[335082631,1723812639258,-159.19,0.000266,31]
[335082632,1723812639267,-1100.0,0.00026732,2]
[335082633,1723812639277,-1900.0,0.00026858,2]
[335082634,1723812639286,-600.0,0.00027124,2]
[335082635,1723812639296,-1900.0,0.00027164,2]
[335082636,1723812639305,-600.0,0.00027241,2]
[335082637,1723812639314,-1900.0,0.00027263,2]
[335082638,1723812639324,-600.0,0.00027414,2]
[335082639,1723812639333,-1900.0,0.00027621,2]
[335082640,1723812639346,-465.54669173,0.0002764,2]
[335082641,1723812639355,-1900.0,0.00027908,2]
[335082642,1723812639364,-1025.540304,0.00028,8]
[335082643,1723812639373,-1900.0,0.00028003,2]
[335082644,1723812639384,-1900.0,0.00028016,2]
[335082645,1723812639393,-1100.0,0.00028134,2]
[335082646,1723812639403,-600.0,0.00028183,2]
[335082647,1723812639412,-1900.0,0.00028462,2]
[335082648,1723812639422,-1000.0,0.000285,8]
[335082649,1723812639432,-1100.0,0.00028564,2]
[335082650,1723812639441,-4920.90783643,0.00028592,2]
[335082651,1723812639450,-1900.0,0.00028594,2]
[335082652,1723812639459,-148687.194925,0.00028732,3]
[335082653,1723812639470,-600.0,0.00028761,2]
[335082654,1723812639479,-200.0,0.000288,5]
[335082655,1723812639488,-4920.90783643,0.00028989,2]
[335082656,1723812639497,-1000.0,0.00029,29]
[335082657,1723812639507,-1000.0,0.00029,8]
[335082658,1723812639517,-1100.0,0.00029036,2]
[335082659,1723812639526,-1900.0,0.00029082,2]
[335082660,1723812639536,-4920.90783643,0.00029199,2]
[335082661,1723812639545,-1900.0,0.00029299,2]
[335082662,1723812639555,-298.37089832,0.00029441,2]
[335082663,1723812639563,-1000.0,0.000295,8]
[335082664,1723812639573,-74343.5974623,0.00029547,3]
[335082665,1723812639583,-4920.90783643,0.00029582,2]
[335082666,1723812639592,-5000.0,0.00029662,7]
[335082667,1723812639601,-4920.90783644,0.00029689,2]
[335082668,1723812639611,-1900.0,0.00029817,2]
[335082669,1723812639620,-1900.0,0.00029854,2]
[335082670,1723812639629,-3000.0,0.000299,2]
[335082671,1723812639639,-3000.0,0.0002991,2]
[335082672,1723812639648,-3000.0,0.0002992,2]
[335082673,1723812639658,-3000.0,0.0002993,2]
[335082674,1723812639667,-1100.0,0.00029934,2]
[335082675,1723812639677,-3000.0,0.0002994,2]
[335082676,1723812639686,-500.0,0.00029949,2]
[335082677,1723812639695,-505.12022929,0.00029949,2]
[335082678,1723812639705,-3000.0,0.0002995,2]
[335082679,1723812639717,-3000.0,0.0002996,2]
[335082680,1723812639727,-3000.0,0.0002997,2]
[335082681,1723812639736,-3000.0,0.0002998,2]
[335082682,1723812639746,-3000.0,0.0002999,2]
[335082683,1723812639756,-332.0,0.0003,14]
[335082684,1723812639766,-3000.0,0.0003,2]
[335082685,1723812639776,-1000.0,0.0003,8]
[335082686,1723812639786,-3000.0,0.0003001,2]
[335082687,1723812639796,-3000.0,0.0003002,2]
[335082688,1723812639805,-3000.0,0.0003003,2]
[335082689,1723812639815,-3000.0,0.0003004,2]
[335082691,1723812639824,-3000.0,0.0003005,2]
[335082692,1723812639834,-3000.0,0.0003006,2]
[335082693,1723812639843,-3000.0,0.0003007,2]
[335082694,1723812639853,-3000.0,0.0003008,2]
[335082696,1723812639862,-3000.0,0.0003009,2]
[335082698,1723812639872,-3000.0,0.000301,2]
[335082700,1723812639882,-3000.0,0.0003011,2]
[335082701,1723812639892,-3000.0,0.0003012,2]
[335082702,1723812639901,-3000.0,0.0003013,3]
[335082703,1723812639911,-3000.0,0.0003014,3]
[335082704,1723812639921,-3000.0,0.0003015,3]
[335082705,1723812639931,-3000.0,0.0003016,3]
[335082706,1723812639940,-400.0,0.0003017,5]
[335082707,1723812639950,-3000.0,0.0003017,3]
[335082708,1723812639959,-3000.0,0.0003018,3]
[335082709,1723812639974,-3000.0,0.0003019,3]
[335082711,1723812639983,-1100.0,0.00030198,7]
[335082713,1723812639992,-3000.0,0.000302,3]
[335082714,1723812640001,-600.0,0.00030205,7]
[335082715,1723812640011,-3000.0,0.0003021,3]
[335082716,1723812640020,-3000.0,0.0003022,3]
[335082717,1723812640030,-3000.0,0.0003023,3]
[335082719,1723812640040,-3000.0,0.0003024,3]
[335082721,1723812640049,-3000.0,0.0003025,3]
[335082724,1723812640058,-3000.0,0.0003026,3]
[335082727,1723812640067,-3000.0,0.0003027,3]
[335082731,1723812640077,-3000.0,0.0003028,3]
[335082733,1723812640086,-3000.0,0.0003029,3]
[335082735,1723812640096,-1208.12,0.000303,7]
[335082737,1723812640105,-4005.86,0.000303,14]
[335082738,1723812640114,-68059.43,0.000303,14]
[335082739,1723812640124,-3000.0,0.000303,3]
[335082740,1723812640133,-3000.0,0.0003031,3]
[335082741,1723812640143,-3000.0,0.0003032,3]
[335082742,1723812640152,-3000.0,0.0003033,3]
[335082743,1723812640161,-3000.0,0.0003034,3]
[335082744,1723812640170,-3000.0,0.0003035,3]
[335082745,1723812640180,-600.0,0.00030352,7]
[335082746,1723812640189,-3000.0,0.0003036,3]
[335082747,1723812640198,-4342.457628,0.0003037,3]
[335082748,1723812640208,-1900.0,0.00030497,7]
[335082750,1723812640219,-1000.0,0.000305,8]
[335082752,1723812640229,-1900.0,0.00030748,7]
[335082754,1723812640238,-1100.0,0.0003079,7]
[335082756,1723812640248,-1100.0,0.00030849,7]
[335082758,1723812640257,-2283.53421907,0.00030927,2]
[335082760,1723812640266,-600.0,0.0003095,7]
[335082762,1723812640275,-1000.0,0.00031,31]
[335082764,1723812640285,-1000.0,0.00031,8]
[335082766,1723812640294,-600.0,0.00031037,7]
[335082768,1723812640304,-35534.61769023,0.000311,2]
[335082770,1723812640314,-150.112233,0.000311,8]
[335082772,1723812640324,-159.19,0.000315,31]
[335082774,1723812640334,-1000.0,0.000315,8]
[335082776,1723812640344,-1900.0,0.00031676,7]
[335082778,1723812640357,-165.10072,0.00031781,2]
[335082780,1723812640367,-151.0,0.00031849,7]
[335082782,1723812640377,-151.0,0.00031849,7]
[335082784,1723812640387,-151.0,0.00031849,7]
[335082786,1723812640396,-151.0,0.00031849,7]
[335082788,1723812640406,-151.0,0.00031849,7]
[335082790,1723812640416,-151.0,0.00031849,7]
[335082792,1723812640427,-200.0,0.00031873,2]
[335082794,1723812640437,-200.0,0.00031873,4]
[335082809,1723812640577,-200.0,0.00031873,3]
[335082810,1723812640588,-90606.10058675,0.0003188,11]
[335082811,1723812640598,-150.0,0.0003188,14]
[335082812,1723812640607,-22043.08058319,0.0003188,7]
[335082813,1723812640617,-6044.59356258,0.0003188,30]
[335082814,1723812640626,-11550.02268888,0.0003188,30]
[335082815,1723812640636,-5323.66227867,0.0003188,30]
[335082816,1723812640645,-299469.91707898,0.0003188,7]
[335082819,1723812640910,-779.85217684,0.00013698,2]
[335082821,1723812640920,-44466.90327774,0.0003188,7]
[335082823,1723812640929,-52374.81222193,0.0003188,30]
[335082827,1723812640956,-809.96960681,0.0003188,30]
[335082951,1723812642395,190.76353094,9.9e-05,2]
[335082958,1723812643937,-9916.32869637,0.0003188,30]
[335083028,1723812646563,-2031.488051,0.0003188,30]
[335083046,1723812650977,244.01680632,9.9e-05,2]
[335083048,1723812741542,1731.28913071,9.9e-05,2]
[335083049,1723812756048,886.51060802,9.9e-05,2]
[335083050,1723812782094,356.69936343,9.9e-05,2]
[335083060,1723813165789,273.37336231,9.9e-05,2]
[335083061,1723813181929,273.37336231,9.9e-05,2]
[335083063,1723813199020,273.37336231,9.9e-05,2]
[335083064,1723813214948,273.37336231,9.9e-05,2]
[335083065,1723813231208,155.9660416,9.9e-05,2]
[335083066,1723813239315,273.37336231,9.9e-05,2]
[335083067,1723813254972,273.37336231,9.9e-05,2]
[335083068,1723813271070,886.51060802,9.9e-05,2]
[335083069,1723813271202,273.37336231,9.9e-05,2]
[335083070,1723813283581,4718.29455301,9.9e-05,2]
[335083071,1723813294199,218.62299037,9.9e-05,2]
[335083072,1723813301010,3738.18619151,9.9e-05,2]
[335083073,1723813338647,3791.15362435,9.9e-05,2]
[335083074,1723813340787,309.48934258,9.9e-05,2]
[335083075,1723813350577,886.51060802,9.9e-05,2]
[335083076,1723813354642,156.00872773,9.9e-05,2]
[335083077,1723813390585,4718.29455301,9.9e-05,2]
[335083078,1723813390970,1626.86783463,9.9e-05,2]
[335083079,1723813396858,218.62299037,9.9e-05,2]
[335083080,1723813420749,228.27887666,9.9e-05,2]
[335083081,1723813427503,3790.35786232,9.9e-05,2]
[335083082,1723813444576,886.51060802,9.9e-05,2]
[335083083,1723813449208,404.65460675,9.9e-05,2]
[335083084,1723813474899,259.51050466,9.9e-05,2]
[335083086,1723813513598,4701.31086447,9.9e-05,2]
[335083087,1723813520593,2108.40472945,9.9e-05,2]
[335083088,1723813532518,3247.89811214,9.9e-05,2]
[335083089,1723813574572,886.51060802,9.9e-05,2]
[335083094,1723813664572,854.70076101,9.9e-05,2]
[335083095,1723813750179,-2165.20291982,0.00011987,2]
[335083096,1723813750202,-1057.37014352,0.00012782,2]
[335083097,1723813750225,-23.28828721,0.00012934,2]
[335083162,1723813832716,-156.81279309,0.00012886,2]
[335083165,1723813832726,-779.85217684,0.00012898,2]
[335083167,1723813832736,-1.56145538,0.00014004,2]
[335083263,1723813838584,-247.13563527,0.00014004,2]
[335083264,1723813838593,-165.270853,0.00014247,2]
[335083265,1723813838602,-508.33565566,0.00016658,2]
[335083266,1723813838641,-432.85647337,0.00016658,2]
[335083267,1723813838652,-2058.80787097,0.00016658,2]
[335083268,1723813838662,-11718.22465088,0.00016932,2]
[335083270,1723813838699,-420.30828837,0.00016932,2]
[335083271,1723813838711,-12761.46706075,0.00016932,2]
[335083272,1723813838720,-205.826204,0.00019178,2]
[335083273,1723813838730,-1260.16836963,0.0002,2]
[335083275,1723813838739,-705.45595223,0.000203,2]
[335083276,1723813838748,-165.270853,0.00021918,2]
[335083277,1723813838757,-952.97302419,0.00024105,2]
[335083278,1723813838767,-1110.39279741,0.00024115,2]
[335083279,1723813838776,-811.0577338,0.00024118,2]
[335083280,1723813838786,-10503.82431025,0.00024242,2]
[335083281,1723813838795,-1500.0,0.00025297,2]
[335083282,1723813838804,-3000.0,0.000254,2]
[335083283,1723813838813,-3000.0,0.0002541,2]
[335083284,1723813838823,-3000.0,0.0002542,2]
[335083285,1723813838832,-3000.0,0.0002543,2]
[335083286,1723813838844,-3000.0,0.0002544,2]
[335083287,1723813838855,-3000.0,0.0002545,2]
[335083288,1723813838866,-3000.0,0.0002546,2]
[335083289,1723813838875,-3000.0,0.0002547,2]
[335083290,1723813838887,-3000.0,0.0002548,2]
[335083291,1723813838896,-3000.0,0.0002549,2]
[335083292,1723813838905,-3000.0,0.000255,2]
[335083293,1723813838915,-3000.0,0.0002551,2]
[335083294,1723813838925,-3000.0,0.0002552,2]
[335083295,1723813838935,-3000.0,0.0002553,2]
[335083296,1723813838945,-3000.0,0.0002554,2]
[335083297,1723813838955,-3000.0,0.0002555,2]
[335083298,1723813838964,-3000.0,0.0002556,2]
[335083299,1723813838974,-3000.0,0.0002557,2]
[335083300,1723813838984,-3000.0,0.0002558,2]
[335083301,1723813838997,-1400.0,0.00025588,2]
[335083302,1723813839008,-3000.0,0.0002559,2]
[335083303,1723813839018,-3000.0,0.000256,2]
[335083304,1723813839031,-3000.0,0.0002561,2]
[335083305,1723813839045,-3000.0,0.0002562,2]
[335083306,1723813839055,-3000.0,0.0002563,2]
[335083307,1723813839065,-66909.2377161,0.0002563,3]
[335083308,1723813839074,-3000.0,0.0002564,2]
[335083309,1723813839084,-3000.0,0.0002565,2]
[335083310,1723813839094,-3000.0,0.0002566,2]
[335083311,1723813839103,-3000.0,0.0002567,2]
[335083312,1723813839113,-900.0,0.00025677,2]
[335083313,1723813839132,-3000.0,0.0002568,2]
[335083314,1723813839141,-3000.0,0.0002569,2]
[335083315,1723813839151,-3000.0,0.000257,2]
[335083316,1723813839163,-3000.0,0.0002571,2]
[335083317,1723813839173,-3000.0,0.0002572,2]
[335083318,1723813839183,-3000.0,0.0002573,2]
[335083319,1723813839192,-3000.0,0.0002574,2]
[335083320,1723813839202,-1500.0,0.00025745,2]
[335083321,1723813839212,-3000.0,0.0002575,2]
[335083322,1723813839222,-3000.0,0.0002576,2]
[335083323,1723813839233,-1400.0,0.00025765,2]
[335083324,1723813839243,-3000.0,0.0002577,2]
[335083325,1723813839254,-66909.2377161,0.0002577,3]
[335083326,1723813839264,-3842.451095,0.0002578,2]
[335083327,1723813839273,-900.0,0.00025799,2]
[335083328,1723813839283,-900.0,0.00025824,2]
[335083329,1723813839292,-500.0,0.00026557,2]
[335083330,1723813839302,-1400.0,0.00026573,2]
[335083331,1723813839311,-159.21,0.000266,31]
[335083332,1723813839321,-900.0,0.0002681,2]
[335083333,1723813839330,-1400.0,0.00026939,2]
[335083334,1723813839340,-900.0,0.00027034,2]
[335083335,1723813839349,-5000.0,0.00027496,2]
[335083336,1723813839359,-900.0,0.00027547,2]
[335083337,1723813839369,-1025.540304,0.000276,7]
[335083338,1723813839379,-1500.0,0.00027686,2]
[335083339,1723813839388,-900.0,0.00027823,2]
[335083340,1723813839398,-900.0,0.00027918,2]
[335083341,1723813839408,-465.54669173,0.00028064,2]
[335083342,1723813839417,-1000.0,0.000281,7]
[335083343,1723813839428,-1400.0,0.0002821,2]
[335083344,1723813839437,-1500.0,0.0002831,2]
[335083345,1723813839448,-1400.0,0.00028544,2]
[335083346,1723813839458,-500.0,0.00028575,2]
[335083347,1723813839468,-1000.0,0.000286,7]
[335083348,1723813839478,-1400.0,0.00028907,2]
[335083349,1723813839487,-1500.0,0.00028911,2]
[335083350,1723813839496,-1000.0,0.000291,7]
[335083351,1723813839506,-900.0,0.00029151,2]
[335083352,1723813839516,-900.0,0.00029579,2]
[335083353,1723813839526,-165.270853,0.00029589,2]
[335083354,1723813839535,-1000.0,0.000296,7]
[335083355,1723813839544,-900.0,0.00029696,2]
[335083356,1723813839554,-900.0,0.00029891,2]
[335083357,1723813839563,-1000.0,0.000301,7]
[335083358,1723813839573,-4920.90783643,0.00030443,2]
[335083359,1723813839583,-900.0,0.00030469,7]
[335083360,1723813839592,-500.0,0.00030537,7]
[335083361,1723813839602,-1000.0,0.000306,7]
[335083362,1723813839612,-4920.90783643,0.00030709,2]
[335083363,1723813839624,-1500.0,0.0003089,7]
[335083364,1723813839633,-1400.0,0.00031097,7]
[335083365,1723813839643,-1000.0,0.000311,7]
[335083366,1723813839653,-4920.90783643,0.00031187,2]